[Event "Early-Titled-Tuesday-Blitz-May-28-2024"]
[Site "Chess.com"]
[Date "2024.05.28"]
[Round "10"]
[White "ClauAmura"]
[Black "agvega14"]
[Result "1-0"]
[WhiteElo "2412"]
[BlackElo "2256"]
[TimeControl "180+1"]
[EndTime "9:57:44 PDT"]
[Termination "ClauAmura won by resignation"]

1. d4 {[%clk 0:03:00.9]} 1... d5 {[%clk 0:02:59.7]} 2. Bg5 {[%clk 0:03:00.8]}
2... h6 {[%clk 0:02:59.2]} 3. Bh4 {[%clk 0:03:00.4]} 3... c6 {[%clk 0:02:59.5]}
4. c3 {[%clk 0:02:58.8]} 4... Qb6 {[%clk 0:03:00]} 5. Qb3 {[%clk 0:02:59.1]}
5... Bf5 {[%clk 0:02:57.7]} 6. Nd2 {[%clk 0:02:59]} 6... e6 {[%clk 0:02:56.3]}
7. f3 {[%clk 0:02:55.4]} 7... Nd7 {[%clk 0:02:37.4]} 8. e4 {[%clk 0:02:55.8]}
8... Bh7 {[%clk 0:02:36.6]} 9. Bd3 {[%clk 0:02:53.3]} 9... Ngf6 {[%clk
0:02:26.7]} 10. Ne2 {[%clk 0:02:52.5]} 10... Be7 {[%clk 0:02:15.1]} 11. O-O
{[%clk 0:02:51.1]} 11... Qxb3 {[%clk 0:02:08.8]} 12. axb3 {[%clk 0:02:49.9]}
12... g5 {[%clk 0:01:59.2]} 13. Bg3 {[%clk 0:02:46.5]} 13... Nh5 {[%clk
0:01:39.6]} 14. Bf2 {[%clk 0:02:36.3]} 14... O-O {[%clk 0:01:34.3]} 15. b4
{[%clk 0:02:36.1]} 15... a6 {[%clk 0:01:31.4]} 16. Nb3 {[%clk 0:02:35.9]} 16...
Bd8 {[%clk 0:01:27.2]} 17. Nc5 {[%clk 0:02:34.8]} 17... Nxc5 {[%clk 0:01:25.7]}
18. bxc5 {[%clk 0:02:35.7]} 18... Bc7 {[%clk 0:01:19]} 19. h4 {[%clk 0:02:19.1]}
19... Kg7 {[%clk 0:01:01.4]} 20. Be3 {[%clk 0:02:15.4]} 20... Nf4 {[%clk
0:00:52.8]} 21. Bxf4 {[%clk 0:02:10.9]} 21... gxf4 {[%clk 0:00:52.4]} 22. Kf2
{[%clk 0:02:02.6]} 22... f6 {[%clk 0:00:42]} 23. Rad1 {[%clk 0:01:54.9]} 23...
Rad8 {[%clk 0:00:30]} 24. exd5 {[%clk 0:01:50.6]} 24... exd5 {[%clk 0:00:27.7]}
25. Bxh7 {[%clk 0:01:44.4]} 25... Kxh7 {[%clk 0:00:28.6]} 26. h5 {[%clk
0:01:41.4]} 26... Rde8 {[%clk 0:00:27.5]} 27. Rh1 {[%clk 0:01:41.3]} 27... Re3
{[%clk 0:00:17.4]} 28. Rh4 {[%clk 0:01:40]} 28... Rfe8 {[%clk 0:00:17.9]} 29.
Rd2 {[%clk 0:01:36]} 29... Kg7 {[%clk 0:00:16.3]} 30. Nxf4 {[%clk 0:01:34.4]}
30... Bxf4 {[%clk 0:00:16.1]} 31. Rxf4 {[%clk 0:01:34.6]} 31... Re1 {[%clk
0:00:16.8]} 32. Rg4+ {[%clk 0:01:33.4]} 32... Kh7 {[%clk 0:00:16]} 33. Rg6
{[%clk 0:01:34]} 33... R8e6 {[%clk 0:00:15.8]} 34. Rxf6 {[%clk 0:01:31.9]} 34...
Rxf6 {[%clk 0:00:15.4]} 35. Kxe1 {[%clk 0:01:32.1]} 35... Rf5 {[%clk 0:00:15.9]}
36. Re2 {[%clk 0:01:29.8]} 36... Rxh5 {[%clk 0:00:14.3]} 37. Re7+ {[%clk
0:01:30.2]} 37... Kg6 {[%clk 0:00:15.1]} 38. Rxb7 {[%clk 0:01:29.9]} 38... Rh1+
{[%clk 0:00:15.9]} 39. Kf2 {[%clk 0:01:30]} 39... Rb1 {[%clk 0:00:16.3]} 40. Rb6
{[%clk 0:01:30.5]} 40... Kf5 {[%clk 0:00:15.8]} 41. Kg3 {[%clk 0:01:28.3]} 41...
h5 {[%clk 0:00:13.3]} 42. b4 {[%clk 0:01:21.5]} 42... Rb3 {[%clk 0:00:11.3]} 43.
Rxa6 {[%clk 0:01:20.7]} 43... Rxc3 {[%clk 0:00:11.3]} 44. Rxc6 {[%clk
0:01:21.2]} 44... Rc4 {[%clk 0:00:11.8]} 45. b5 {[%clk 0:01:21.1]} 45... Rxd4
{[%clk 0:00:10.7]} 46. b6 {[%clk 0:01:21.7]} 46... Rb4 {[%clk 0:00:10.7]} 47.
Rc7 {[%clk 0:01:19.5]} 47... d4 {[%clk 0:00:09.9]} 48. b7 {[%clk 0:01:20]} 48...
d3 {[%clk 0:00:10]} 49. Rd7 {[%clk 0:01:19.1]} 49... d2 {[%clk 0:00:08.7]} 50.
c6 {[%clk 0:01:17.8]} 50... h4+ {[%clk 0:00:03.2]} 51. Kf2 {[%clk 0:01:13.6]}
51... Rb2 {[%clk 0:00:03.2]} 52. Ke2 {[%clk 0:01:12.4]} 52... d1=Q+ {[%clk
0:00:03]} 53. Kxd1 {[%clk 0:01:11.8]} 53... Rxg2 {[%clk 0:00:02.7]} 54. b8=Q
{[%clk 0:01:11.8]} 54... h3 {[%clk 0:00:03.2]} 55. Qf8+ {[%clk 0:01:11.3]} 1-0

[Event "Early-Titled-Tuesday-Blitz-May-28-2024"]
[Site "Chess.com"]
[Date "2024.05.28"]
[Round "10"]
[White "ZachHKL"]
[Black "GlavkonVVS"]
[Result "0-1"]
[WhiteElo "2368"]
[BlackElo "2576"]
[TimeControl "180+1"]
[EndTime "9:57:45 PDT"]
[Termination "GlavkonVVS won by checkmate"]

1. c4 {[%clk 0:03:00.9]} 1... Nf6 {[%clk 0:03:00]} 2. g3 {[%clk 0:03:01.1]} 2...
c5 {[%clk 0:03:00.4]} 3. Bg2 {[%clk 0:03:00.9]} 3... Nc6 {[%clk 0:03:00.9]} 4.
Nf3 {[%clk 0:03:01.4]} 4... g6 {[%clk 0:03:01.3]} 5. O-O {[%clk 0:03:01.8]} 5...
Bg7 {[%clk 0:03:01.8]} 6. Nc3 {[%clk 0:03:02.3]} 6... O-O {[%clk 0:03:01.9]} 7.
d3 {[%clk 0:03:02.8]} 7... d6 {[%clk 0:03:02]} 8. Qd2 {[%clk 0:03:03]} 8... a6
{[%clk 0:03:02.3]} 9. b3 {[%clk 0:03:03.4]} 9... Rb8 {[%clk 0:03:02.3]} 10. Bb2
{[%clk 0:03:04]} 10... b5 {[%clk 0:03:02.7]} 11. Rad1 {[%clk 0:02:53.4]} 11...
Bg4 {[%clk 0:02:54.1]} 12. Ng5 {[%clk 0:02:44.6]} 12... Qc8 {[%clk 0:02:49.4]}
13. Nd5 {[%clk 0:02:36.7]} 13... Nxd5 {[%clk 0:02:46.1]} 14. cxd5 {[%clk
0:02:37.6]} 14... Nd4 {[%clk 0:02:38]} 15. Rfe1 {[%clk 0:02:21.3]} 15... h6
{[%clk 0:02:35.2]} 16. Ne4 {[%clk 0:02:20.4]} 16... Bd7 {[%clk 0:02:09]} 17. e3
{[%clk 0:02:00.9]} 17... Nf5 {[%clk 0:02:08.4]} 18. Bxg7 {[%clk 0:02:00.6]}
18... Kxg7 {[%clk 0:02:05.8]} 19. Rc1 {[%clk 0:02:00.2]} 19... Qd8 {[%clk
0:02:04.5]} 20. b4 {[%clk 0:01:53]} 20... cxb4 {[%clk 0:02:01.4]} 21. Qxb4
{[%clk 0:01:53.9]} 21... a5 {[%clk 0:01:59.6]} 22. Qb2+ {[%clk 0:01:54.1]} 22...
f6 {[%clk 0:01:57.5]} 23. Nd2 {[%clk 0:01:48.6]} 23... Qb6 {[%clk 0:01:52.8]}
24. Nf3 {[%clk 0:01:44.9]} 24... h5 {[%clk 0:01:49.1]} 25. e4 {[%clk 0:01:36.1]}
25... Nh6 {[%clk 0:01:48.1]} 26. Nd4 {[%clk 0:01:32.6]} 26... Rfc8 {[%clk
0:01:44.6]} 27. Rxc8 {[%clk 0:01:24.9]} 27... Rxc8 {[%clk 0:01:44]} 28. Rb1
{[%clk 0:01:23.7]} 28... Ng4 {[%clk 0:01:24.8]} 29. Bh3 {[%clk 0:01:21.3]} 29...
b4 {[%clk 0:01:15.5]} 30. a3 {[%clk 0:01:08.1]} 30... Rb8 {[%clk 0:01:04.8]} 31.
f3 {[%clk 0:00:40]} 31... Ne5 {[%clk 0:01:01.2]} 32. Bxd7 {[%clk 0:00:40.4]}
32... Nxf3+ {[%clk 0:00:59.2]} 33. Kg2 {[%clk 0:00:36.2]} 33... Nxd4 {[%clk
0:00:58.1]} 34. axb4 {[%clk 0:00:28.9]} 34... axb4 {[%clk 0:00:57.1]} 35. Rc1
{[%clk 0:00:21.8]} 35... b3 {[%clk 0:00:52.3]} 36. Rc4 {[%clk 0:00:20.3]} 36...
Nc2 {[%clk 0:00:50.6]} 37. Rc3 {[%clk 0:00:20.5]} 37... Ne3+ {[%clk 0:00:44.1]}
38. Kf3 {[%clk 0:00:18.6]} 38... Nd1 {[%clk 0:00:43.3]} 39. Qa1 {[%clk
0:00:12.6]} 39... Qe3+ {[%clk 0:00:42.5]} 40. Kg2 {[%clk 0:00:12.4]} 40... Qd2+
{[%clk 0:00:40]} 41. Kh3 {[%clk 0:00:12.1]} 41... Nf2+ {[%clk 0:00:37.8]} 42.
Kg2 {[%clk 0:00:11.9]} 42... Nxe4+ {[%clk 0:00:36.9]} 43. Kh3 {[%clk 0:00:10.8]}
43... Ng5+ {[%clk 0:00:35.7]} 44. Kh4 {[%clk 0:00:11.4]} 44... Qxh2+ {[%clk
0:00:35.8]} 45. Bh3 {[%clk 0:00:11.1]} 45... Qxh3# {[%clk 0:00:36.1]} 0-1

[Event "Early-Titled-Tuesday-Blitz-May-28-2024"]
[Site "Chess.com"]
[Date "2024.05.28"]
[Round "10"]
[White "David_George21"]
[Black "Glidzhian_Gor"]
[Result "1-0"]
[WhiteElo "2422"]
[BlackElo "2532"]
[TimeControl "180+1"]
[EndTime "9:57:46 PDT"]
[Termination "David_George21 won on time"]

1. e4 {[%clk 0:03:00.9]} 1... e5 {[%clk 0:02:44.3]} 2. Nf3 {[%clk 0:02:58.5]}
2... Nc6 {[%clk 0:02:43.7]} 3. Bb5 {[%clk 0:02:58]} 3... f5 {[%clk 0:02:43.2]}
4. exf5 {[%clk 0:02:52]} 4... e4 {[%clk 0:02:36.4]} 5. Bxc6 {[%clk 0:02:35.3]}
5... dxc6 {[%clk 0:02:34.4]} 6. Ne5 {[%clk 0:02:34.4]} 6... Bxf5 {[%clk
0:02:22.7]} 7. O-O {[%clk 0:02:32.1]} 7... Bd6 {[%clk 0:02:10.9]} 8. d4 {[%clk
0:02:29.2]} 8... Nf6 {[%clk 0:02:07.8]} 9. Qe2 {[%clk 0:02:20.8]} 9... Qe7
{[%clk 0:01:49.1]} 10. Nc4 {[%clk 0:02:15.5]} 10... O-O-O {[%clk 0:01:49]} 11.
Nxd6+ {[%clk 0:02:15]} 11... Rxd6 {[%clk 0:01:44.4]} 12. c3 {[%clk 0:02:12.6]}
12... h5 {[%clk 0:01:37.2]} 13. Bf4 {[%clk 0:02:11.8]} 13... Re6 {[%clk
0:01:37.4]} 14. Nd2 {[%clk 0:02:11.2]} 14... Nd5 {[%clk 0:01:34.1]} 15. Be5
{[%clk 0:02:06.1]} 15... h4 {[%clk 0:01:32]} 16. h3 {[%clk 0:01:58.6]} 16...
Rxe5 {[%clk 0:01:24.6]} 17. dxe5 {[%clk 0:01:58.3]} 17... Qxe5 {[%clk
0:01:25.5]} 18. Nc4 {[%clk 0:01:57.6]} 18... Qe6 {[%clk 0:01:20.1]} 19. Ne3
{[%clk 0:01:57.6]} 19... Nf4 {[%clk 0:01:15.6]} 20. Qc4 {[%clk 0:01:56.9]} 20...
Qg6 {[%clk 0:01:05.1]} 21. Kh2 {[%clk 0:01:56.6]} 21... Be6 {[%clk 0:00:43]} 22.
Qc5 {[%clk 0:01:46.3]} 22... Bd5 {[%clk 0:00:08.2]} 23. Qxa7 {[%clk 0:01:43.2]}
23... Rh5 {[%clk 0:00:08.4]} 24. Rad1 {[%clk 0:01:39.4]} 24... Rg5 {[%clk
0:00:08.3]} 25. Rg1 {[%clk 0:01:39.5]} 25... Qe6 {[%clk 0:00:07.1]} 26. Ng4
{[%clk 0:01:18.4]} 26... Rxg4 {[%clk 0:00:07.4]} 27. hxg4 {[%clk 0:01:18.7]}
27... Qxg4 {[%clk 0:00:08.3]} 28. c4 {[%clk 0:01:12.9]} 28... Ne2 {[%clk
0:00:03.4]} 29. cxd5 {[%clk 0:01:08.1]} 29... Qf4+ {[%clk 0:00:01.9]} 30. Kh1
{[%clk 0:01:06]} 30... Ng3+ {[%clk 0:00:01]} 31. fxg3 {[%clk 0:01:03.3]} 31...
hxg3 {[%clk 0:00:01.9]} 32. Qa8+ {[%clk 0:01:02.4]} 32... Kd7 {[%clk 0:00:02.4]}
33. dxc6+ {[%clk 0:01:02.8]} 33... Kxc6 {[%clk 0:00:03]} 34. Qe8+ {[%clk
0:01:00.3]} 34... Kb6 {[%clk 0:00:03.4]} 35. Qh5 {[%clk 0:00:56.2]} 35... Ka7
{[%clk 0:00:03.7]} 36. Rd5 {[%clk 0:00:54.9]} 36... b6 {[%clk 0:00:02.6]} 37.
Rd7 {[%clk 0:00:54.3]} 37... Kb7 {[%clk 0:00:02.7]} 38. Rxg7 {[%clk 0:00:51.7]}
38... e3 {[%clk 0:00:02.8]} 39. Qf3+ {[%clk 0:00:51.1]} 39... Qxf3 {[%clk
0:00:02.8]} 40. gxf3 {[%clk 0:00:52]} 40... e2 {[%clk 0:00:03.6]} 41. Re1 {[%clk
0:00:52.1]} 41... g2+ {[%clk 0:00:03.5]} 42. Rxg2 {[%clk 0:00:52.3]} 42... c5
{[%clk 0:00:04.4]} 43. Rgxe2 {[%clk 0:00:52.7]} 43... b5 {[%clk 0:00:05.3]} 44.
f4 {[%clk 0:00:53.2]} 44... c4 {[%clk 0:00:06.2]} 45. f5 {[%clk 0:00:54.1]}
45... b4 {[%clk 0:00:07.1]} 46. f6 {[%clk 0:00:55]} 46... c3 {[%clk 0:00:08]}
47. bxc3 {[%clk 0:00:54.8]} 47... b3 {[%clk 0:00:08.9]} 48. axb3 {[%clk
0:00:54.6]} 1-0

[Event "Early-Titled-Tuesday-Blitz-May-28-2024"]
[Site "Chess.com"]
[Date "2024.05.28"]
[Round "10"]
[White "Nitzan_Steinberg"]
[Black "DanielNaroditsky"]
[Result "0-1"]
[WhiteElo "2902"]
[BlackElo "3070"]
[TimeControl "180+1"]
[EndTime "9:57:48 PDT"]
[Termination "DanielNaroditsky won on time"]

1. e4 {[%clk 0:03:00.9]} 1... e5 {[%clk 0:02:52.9]} 2. Nf3 {[%clk 0:03:01.2]}
2... Nc6 {[%clk 0:02:52.9]} 3. Bb5 {[%clk 0:03:01.7]} 3... a6 {[%clk 0:02:49.1]}
4. Ba4 {[%clk 0:03:01.9]} 4... d6 {[%clk 0:02:49.7]} 5. c3 {[%clk 0:03:00.5]}
5... Bd7 {[%clk 0:02:50]} 6. O-O {[%clk 0:02:59.3]} 6... Nf6 {[%clk 0:02:50.6]}
7. Re1 {[%clk 0:02:59.3]} 7... g6 {[%clk 0:02:51.2]} 8. d4 {[%clk 0:02:59.3]}
8... Bg7 {[%clk 0:02:51.9]} 9. h3 {[%clk 0:02:59]} 9... O-O {[%clk 0:02:50.2]}
10. Nbd2 {[%clk 0:02:57]} 10... exd4 {[%clk 0:02:48]} 11. cxd4 {[%clk
0:02:55.7]} 11... Nb4 {[%clk 0:02:48.5]} 12. Bxd7 {[%clk 0:02:49.1]} 12... Qxd7
{[%clk 0:02:49.4]} 13. Qb3 {[%clk 0:02:33]} 13... a5 {[%clk 0:02:49.8]} 14. a3
{[%clk 0:02:31.3]} 14... Nc6 {[%clk 0:02:50.2]} 15. Qa4 {[%clk 0:02:14.8]} 15...
Rfe8 {[%clk 0:02:44.5]} 16. Qc2 {[%clk 0:02:03.7]} 16... a4 {[%clk 0:02:40.4]}
17. Nf1 {[%clk 0:01:59.3]} 17... Na5 {[%clk 0:02:36.5]} 18. Bg5 {[%clk
0:01:55.8]} 18... Nb3 {[%clk 0:02:35.4]} 19. Rad1 {[%clk 0:01:55.5]} 19... Ra5
{[%clk 0:02:36]} 20. Ng3 {[%clk 0:01:52.1]} 20... h6 {[%clk 0:02:32.7]} 21. Bxf6
{[%clk 0:01:22.7]} 21... Bxf6 {[%clk 0:02:33.6]} 22. e5 {[%clk 0:01:23.5]} 22...
Bg7 {[%clk 0:02:33.8]} 23. h4 {[%clk 0:01:24.1]} 23... Qc6 {[%clk 0:02:20.2]}
24. Qb1 {[%clk 0:01:04.6]} 24... dxe5 {[%clk 0:02:08.5]} 25. dxe5 {[%clk
0:00:55.5]} 25... Bxe5 {[%clk 0:01:53.1]} 26. Nxe5 {[%clk 0:00:55.1]} 26...
Raxe5 {[%clk 0:01:52.1]} 27. Rxe5 {[%clk 0:00:55.5]} 27... Rxe5 {[%clk 0:01:53]}
28. h5 {[%clk 0:00:56.4]} 28... Qe6 {[%clk 0:01:26]} 29. Kh2 {[%clk 0:00:55.8]}
29... gxh5 {[%clk 0:01:23.6]} 30. Rd8+ {[%clk 0:00:53.1]} 30... Kg7 {[%clk
0:01:24.2]} 31. f3 {[%clk 0:00:45.1]} 31... h4 {[%clk 0:01:12.8]} 32. Ne4 {[%clk
0:00:43.3]} 32... f5 {[%clk 0:01:12.9]} 33. Qd1 {[%clk 0:00:16.7]} 33... fxe4
{[%clk 0:01:10.2]} 34. f4 {[%clk 0:00:11.7]} 34... Rc5 {[%clk 0:00:55.4]} 35.
Rd7+ {[%clk 0:00:11.5]} 35... Kf8 {[%clk 0:00:51.5]} 36. Rh7 {[%clk 0:00:05.5]}
36... Rd5 {[%clk 0:00:51.1]} 37. Qe1 {[%clk 0:00:03.3]} 37... Qf5 {[%clk
0:00:39.5]} 38. Rh8+ {[%clk 0:00:03.3]} 38... Kg7 {[%clk 0:00:35.4]} 39. Qc3+
{[%clk 0:00:03.9]} 39... Rd4 {[%clk 0:00:36.1]} 40. Re8 {[%clk 0:00:01]} 40...
Qxf4+ {[%clk 0:00:36.3]} 41. Kh1 {[%clk 0:00:01]} 41... Qc1+ {[%clk 0:00:35.6]}
0-1

[Event "Early-Titled-Tuesday-Blitz-May-28-2024"]
[Site "Chess.com"]
[Date "2024.05.28"]
[Round "10"]
[White "DenLaz"]
[Black "vi_pranav"]
[Result "1/2-1/2"]
[WhiteElo "3121"]
[BlackElo "3057"]
[TimeControl "180+1"]
[EndTime "9:57:49 PDT"]
[Termination "Game drawn by agreement"]

1. d4 {[%clk 0:03:00.9]} 1... Nf6 {[%clk 0:03:00.1]} 2. c4 {[%clk 0:03:01.4]}
2... e6 {[%clk 0:03:00.3]} 3. Nf3 {[%clk 0:03:02]} 3... b6 {[%clk 0:02:59.2]} 4.
g3 {[%clk 0:03:02.4]} 4... Ba6 {[%clk 0:02:59.6]} 5. b3 {[%clk 0:03:02.1]} 5...
Bb7 {[%clk 0:02:58.5]} 6. Bg2 {[%clk 0:03:02.1]} 6... Bb4+ {[%clk 0:02:58.9]} 7.
Bd2 {[%clk 0:03:01.1]} 7... a5 {[%clk 0:02:59.3]} 8. O-O {[%clk 0:03:00.6]} 8...
O-O {[%clk 0:02:59.7]} 9. Qc2 {[%clk 0:02:58.4]} 9... d6 {[%clk 0:02:57.4]} 10.
Bg5 {[%clk 0:02:53.9]} 10... a4 {[%clk 0:02:53.1]} 11. Nc3 {[%clk 0:02:19.9]}
11... axb3 {[%clk 0:02:40.9]} 12. axb3 {[%clk 0:02:20]} 12... Bxc3 {[%clk
0:02:33.1]} 13. Qxc3 {[%clk 0:02:19.2]} 13... Nbd7 {[%clk 0:02:19.1]} 14. Rxa8
{[%clk 0:02:15.1]} 14... Bxa8 {[%clk 0:02:20]} 15. Ra1 {[%clk 0:02:14.5]} 15...
h6 {[%clk 0:02:19.9]} 16. Bc1 {[%clk 0:02:11.9]} 16... Be4 {[%clk 0:02:10.3]}
17. b4 {[%clk 0:02:06.2]} 17... Qb8 {[%clk 0:02:09.1]} 18. b5 {[%clk 0:01:34.9]}
18... c6 {[%clk 0:02:06]} 19. bxc6 {[%clk 0:01:27.4]} 19... Bxc6 {[%clk
0:02:04.9]} 20. Qb4 {[%clk 0:01:27.9]} 20... Rc8 {[%clk 0:01:49.3]} 21. Bd2
{[%clk 0:00:41.7]} 21... Ne4 {[%clk 0:01:44.1]} 22. Be1 {[%clk 0:00:41.9]} 22...
b5 {[%clk 0:01:22.8]} 23. cxb5 {[%clk 0:00:28.5]} 23... Qxb5 {[%clk 0:01:21.9]}
24. Qxb5 {[%clk 0:00:28.4]} 24... Bxb5 {[%clk 0:01:22.8]} 25. e3 {[%clk
0:00:28.7]} 25... Ndf6 {[%clk 0:01:18]} 26. Nd2 {[%clk 0:00:21.8]} 26... Nxd2
{[%clk 0:01:11]} 27. Bxd2 {[%clk 0:00:21.9]} 27... Rc2 {[%clk 0:01:11.5]} 28.
Bb4 {[%clk 0:00:20.8]} 28... d5 {[%clk 0:01:12]} 29. h3 {[%clk 0:00:19.7]} 29...
Bd3 {[%clk 0:01:09.9]} 30. Rd1 {[%clk 0:00:16.1]} 30... Be2 {[%clk 0:01:04.3]}
31. Rd2 {[%clk 0:00:16.4]} 31... Rc1+ {[%clk 0:01:04.5]} 32. Kh2 {[%clk
0:00:16.6]} 32... Bc4 {[%clk 0:01:00.1]} 33. Rb2 {[%clk 0:00:16.7]} 33... Ne4
{[%clk 0:00:57.3]} 34. f3 {[%clk 0:00:13.6]} 34... Nc3 {[%clk 0:00:52.3]} 35. g4
{[%clk 0:00:11.2]} 35... Kh7 {[%clk 0:00:36.5]} 36. Kg3 {[%clk 0:00:11.1]} 36...
Ne2+ {[%clk 0:00:27.6]} 37. Kf2 {[%clk 0:00:11.2]} 37... Nc3 {[%clk 0:00:27.7]}
38. Bxc3 {[%clk 0:00:11]} 38... Rxc3 {[%clk 0:00:28.6]} 39. h4 {[%clk
0:00:09.9]} 1/2-1/2

[Event "Early-Titled-Tuesday-Blitz-May-28-2024"]
[Site "Chess.com"]
[Date "2024.05.28"]
[Round "10"]
[White "Witik"]
[Black "rasmussvane"]
[Result "1/2-1/2"]
[WhiteElo "2812"]
[BlackElo "2951"]
[TimeControl "180+1"]
[EndTime "9:57:49 PDT"]
[Termination "Game drawn by repetition"]

1. d4 {[%clk 0:02:59.8]} 1... Nf6 {[%clk 0:02:57.1]} 2. Nf3 {[%clk 0:02:59.8]}
2... d5 {[%clk 0:02:56]} 3. Bf4 {[%clk 0:02:57]} 3... e6 {[%clk 0:02:48.9]} 4.
e3 {[%clk 0:02:56.1]} 4... Bd6 {[%clk 0:02:46.1]} 5. Nbd2 {[%clk 0:02:56.1]}
5... O-O {[%clk 0:02:45.7]} 6. Bd3 {[%clk 0:02:55.3]} 6... c5 {[%clk 0:02:39.9]}
7. c3 {[%clk 0:02:54.8]} 7... Bxf4 {[%clk 0:02:33.5]} 8. exf4 {[%clk 0:02:55]}
8... cxd4 {[%clk 0:02:32.9]} 9. cxd4 {[%clk 0:02:54.9]} 9... Qb6 {[%clk
0:02:30.9]} 10. Nb3 {[%clk 0:02:51.1]} 10... Bd7 {[%clk 0:02:24.1]} 11. O-O
{[%clk 0:02:38.5]} 11... Ba4 {[%clk 0:02:18.8]} 12. Rc1 {[%clk 0:01:58]} 12...
Nc6 {[%clk 0:02:15.6]} 13. Re1 {[%clk 0:01:54]} 13... Bxb3 {[%clk 0:02:09.1]}
14. axb3 {[%clk 0:01:47.5]} 14... Rac8 {[%clk 0:02:02.7]} 15. f5 {[%clk
0:01:38.3]} 15... Nxd4 {[%clk 0:01:37.7]} 16. Rxc8 {[%clk 0:01:25.5]} 16...
Nxf3+ {[%clk 0:01:37]} 17. Qxf3 {[%clk 0:01:26.1]} 17... Rxc8 {[%clk 0:01:37.6]}
18. fxe6 {[%clk 0:01:23.9]} 18... fxe6 {[%clk 0:01:37.1]} 19. g4 {[%clk
0:00:32.7]} 19... Rf8 {[%clk 0:01:26.9]} 20. Qg3 {[%clk 0:00:32.8]} 20... g6
{[%clk 0:01:12]} 21. h3 {[%clk 0:00:31.7]} 21... Qxb3 {[%clk 0:00:56]} 22. Rxe6
{[%clk 0:00:31.5]} 22... Qxb2 {[%clk 0:00:55.9]} 23. Qd6 {[%clk 0:00:24.9]}
23... Ne4 {[%clk 0:00:30.2]} 24. Bxe4 {[%clk 0:00:05.7]} 24... Qxf2+ {[%clk
0:00:14.3]} 25. Kh1 {[%clk 0:00:05.9]} 25... dxe4 {[%clk 0:00:03.2]} 26. Rxg6+
{[%clk 0:00:05.8]} 26... hxg6 {[%clk 0:00:02.3]} 27. Qxg6+ {[%clk 0:00:06.7]}
27... Kh8 {[%clk 0:00:02.8]} 28. Qh6+ {[%clk 0:00:07.4]} 28... Kg8 {[%clk
0:00:02.7]} 29. Qg6+ {[%clk 0:00:07.9]} 29... Kh8 {[%clk 0:00:03.3]} 30. Qh6+
{[%clk 0:00:08.6]} 30... Kg8 {[%clk 0:00:03.9]} 31. Qg6+ {[%clk 0:00:08.6]}
1/2-1/2

[Event "Early-Titled-Tuesday-Blitz-May-28-2024"]
[Site "Chess.com"]
[Date "2024.05.28"]
[Round "10"]
[White "korbul"]
[Black "Preobrazhenska_D2011"]
[Result "1-0"]
[WhiteElo "2659"]
[BlackElo "2516"]
[TimeControl "180+1"]
[EndTime "9:57:55 PDT"]
[Termination "korbul won on time"]

1. d4 {[%clk 0:02:56.7]} 1... Nf6 {[%clk 0:02:59.1]} 2. Nf3 {[%clk 0:02:55.8]}
2... b6 {[%clk 0:02:59]} 3. Nc3 {[%clk 0:02:54.1]} 3... Bb7 {[%clk 0:02:49.3]}
4. Bg5 {[%clk 0:02:53.8]} 4... d5 {[%clk 0:02:45.8]} 5. e3 {[%clk 0:02:52.7]}
5... h6 {[%clk 0:02:14.5]} 6. Bh4 {[%clk 0:02:51.5]} 6... g5 {[%clk 0:02:05.1]}
7. Bg3 {[%clk 0:02:51.2]} 7... Bg7 {[%clk 0:02:05.5]} 8. Ne5 {[%clk 0:02:49.2]}
8... c6 {[%clk 0:01:48.3]} 9. h4 {[%clk 0:02:48.1]} 9... gxh4 {[%clk 0:01:25.3]}
10. Rxh4 {[%clk 0:02:41.6]} 10... Nbd7 {[%clk 0:01:20.4]} 11. Qf3 {[%clk
0:02:40.5]} 11... e6 {[%clk 0:00:58.5]} 12. O-O-O {[%clk 0:02:39.9]} 12... Nxe5
{[%clk 0:00:55.8]} 13. Bxe5 {[%clk 0:02:37.7]} 13... Rh7 {[%clk 0:00:46]} 14. g3
{[%clk 0:02:27.8]} 14... h5 {[%clk 0:00:26.1]} 15. Bd3 {[%clk 0:02:26]} 15...
Rh6 {[%clk 0:00:26.5]} 16. Rdh1 {[%clk 0:02:12.6]} 16... Qe7 {[%clk 0:00:16.1]}
17. Rf4 {[%clk 0:02:07.3]} 17... O-O-O {[%clk 0:00:14.6]} 18. Bxf6 {[%clk
0:01:56.1]} 18... Bxf6 {[%clk 0:00:15.1]} 19. Rxh5 {[%clk 0:01:44.5]} 19... Rdh8
{[%clk 0:00:12.8]} 20. Rxh6 {[%clk 0:01:44.2]} 20... Rxh6 {[%clk 0:00:12.6]} 21.
Ne2 {[%clk 0:01:44.1]} 21... c5 {[%clk 0:00:08.7]} 22. c3 {[%clk 0:01:43.5]}
22... cxd4 {[%clk 0:00:07.3]} 23. exd4 {[%clk 0:01:37.7]} 23... e5 {[%clk
0:00:07]} 24. dxe5 {[%clk 0:01:35.5]} 24... Bg5 {[%clk 0:00:04.4]} 25. Kc2
{[%clk 0:01:34.3]} 25... Bxf4 {[%clk 0:00:04.5]} 26. gxf4 {[%clk 0:01:35.2]}
26... Kb8 {[%clk 0:00:04]} 27. Nd4 {[%clk 0:01:34.8]} 27... Rh8 {[%clk
0:00:04.3]} 28. Qg4 {[%clk 0:01:30]} 28... Qe8 {[%clk 0:00:03.6]} 29. Bb5 {[%clk
0:01:26.9]} 29... Qd8 {[%clk 0:00:03.6]} 30. Qf5 {[%clk 0:01:24.8]} 30... Rf8
{[%clk 0:00:02.6]} 31. a4 {[%clk 0:01:22.9]} 31... a6 {[%clk 0:00:03.1]} 32. Bd3
{[%clk 0:01:22.2]} 32... Ka7 {[%clk 0:00:03.2]} 33. a5 {[%clk 0:01:21.2]} 33...
b5 {[%clk 0:00:03.1]} 34. Nb3 {[%clk 0:01:20.8]} 34... Qe7 {[%clk 0:00:03.2]}
35. Nd4 {[%clk 0:01:20.4]} 35... Ka8 {[%clk 0:00:03]} 36. Qh7 {[%clk 0:01:19]}
36... Bc8 {[%clk 0:00:03.1]} 37. Qg7 {[%clk 0:01:16.3]} 37... Bd7 {[%clk
0:00:03.6]} 38. f5 {[%clk 0:01:16.3]} 38... Qd8 {[%clk 0:00:03.7]} 39. e6 {[%clk
0:01:13.7]} 39... Rg8 {[%clk 0:00:04.1]} 40. Qxf7 {[%clk 0:01:11.3]} 40... Bc8
{[%clk 0:00:04]} 41. e7 {[%clk 0:01:06.3]} 41... Qe8 {[%clk 0:00:04.2]} 42.
Qxd5+ {[%clk 0:01:05.6]} 42... Kb8 {[%clk 0:00:04.7]} 43. f6 {[%clk 0:01:05.1]}
43... Rh8 {[%clk 0:00:03.7]} 44. Qd6+ {[%clk 0:01:01.3]} 44... Ka8 {[%clk
0:00:03.9]} 45. Nc6 {[%clk 0:01:01.6]} 45... Bb7 {[%clk 0:00:03.5]} 46. Ne5
{[%clk 0:01:01.6]} 46... Qc8 {[%clk 0:00:03.2]} 47. f7 {[%clk 0:01:00]} 47...
Rh2 {[%clk 0:00:02.7]} 48. e8=Q {[%clk 0:00:57.7]} 48... Rxf2+ {[%clk
0:00:02.9]} 49. Kc1 {[%clk 0:00:57.9]} 1-0